[Event "GrandPrix_29.05"]
[Site "Chess.com"]
[Date "2020.05.29"]
[Round "5"]
[White "OparinGrigoriy"]
[Black "Durarbayli"]
[Result "1-0"]
[WhiteElo "2514"]
[BlackElo "2474"]
[TimeControl "600+2"]
[EndTime "11:32:59 PDT"]
[Termination "OparinGrigoriy won by checkmate"]

1. Nf3 {[%clk 0:10:01.9]} 1... c5 {[%clk 0:09:42.4]} 2. c4 {[%clk 0:10:02.6]}
2... Nc6 {[%clk 0:09:41.2]} 3. d4 {[%clk 0:10:03]} 3... cxd4 {[%clk 0:09:41.4]}
4. Nxd4 {[%clk 0:10:04.9]} 4... g6 {[%clk 0:09:22.3]} 5. e4 {[%clk 0:10:05.5]}
5... Bg7 {[%clk 0:09:20.5]} 6. Nc2 {[%clk 0:10:06.5]} 6... d6 {[%clk 0:09:04.5]}
7. Be2 {[%clk 0:10:06.4]} 7... Be6 {[%clk 0:09:03.5]} 8. O-O {[%clk 0:09:59.3]}
8... Rc8 {[%clk 0:09:04.2]} 9. Ne3 {[%clk 0:09:38.4]} 9... Nf6 {[%clk
0:08:27.4]} 10. Nc3 {[%clk 0:09:38.7]} 10... O-O {[%clk 0:08:27.7]} 11. Rb1
{[%clk 0:09:32.8]} 11... Nd7 {[%clk 0:08:21.4]} 12. Bd2 {[%clk 0:09:32]} 12...
Nd4 {[%clk 0:08:16.1]} 13. b3 {[%clk 0:09:29.2]} 13... Nc5 {[%clk 0:07:48.1]}
14. Re1 {[%clk 0:06:32.9]} 14... Nxe2+ {[%clk 0:06:14.5]} 15. Qxe2 {[%clk
0:06:34.8]} 15... Bxc3 {[%clk 0:06:14.9]} 16. Bxc3 {[%clk 0:06:36.7]} 16... Nxe4
{[%clk 0:06:16.3]} 17. Ba1 {[%clk 0:06:33.4]} 17... Re8 {[%clk 0:05:39]} 18.
Rbd1 {[%clk 0:06:26.5]} 18... Nf6 {[%clk 0:04:34.6]} 19. Qd2 {[%clk 0:05:28.2]}
19... Rc6 {[%clk 0:03:33.8]} 20. h3 {[%clk 0:05:20.8]} 20... a6 {[%clk
0:03:19.6]} 21. Nc2 {[%clk 0:05:16.5]} 21... Rc8 {[%clk 0:02:44.3]} 22. Qh6
{[%clk 0:03:28.7]} 22... Qa5 {[%clk 0:02:24.1]} 23. Rxd6 {[%clk 0:03:18.3]}
23... Qxa2 {[%clk 0:01:51.5]} 24. Ne3 {[%clk 0:02:16]} 24... Qa5 {[%clk
0:01:44.7]} 25. Rdd1 {[%clk 0:01:55.8]} 25... Qh5 {[%clk 0:00:57.5]} 26. Qf4
{[%clk 0:01:56.4]} 26... g5 {[%clk 0:00:58.7]} 27. Qe5 {[%clk 0:01:42.2]} 27...
Qg6 {[%clk 0:01:00]} 28. Nd5 {[%clk 0:01:25.4]} 28... h6 {[%clk 0:00:38.8]} 29.
Nc7 {[%clk 0:01:18.4]} 29... Red8 {[%clk 0:00:17.3]} 30. Nxe6 {[%clk 0:01:19.6]}
30... fxe6 {[%clk 0:00:18.3]} 31. Qxe6+ {[%clk 0:01:21]} 31... Qf7 {[%clk
0:00:19.7]} 32. Qb6 {[%clk 0:01:21.7]} 32... Rxd1 {[%clk 0:00:17.3]} 33. Rxd1
{[%clk 0:01:23.6]} 33... Ne4 {[%clk 0:00:14.8]} 34. Qxh6 {[%clk 0:01:06.6]}
34... Qxf2+ {[%clk 0:00:09.9]} 35. Kh1 {[%clk 0:01:07.9]} 35... Nf6 {[%clk
0:00:10.8]} 36. Qxg5+ {[%clk 0:01:01.4]} 36... Kf7 {[%clk 0:00:12]} 37. Bxf6
{[%clk 0:01:00]} 37... Qxf6 {[%clk 0:00:13.9]} 38. Qd5+ {[%clk 0:01:01.4]} 38...
Kg7 {[%clk 0:00:10.9]} 39. Qxb7 {[%clk 0:01:02.4]} 39... Rc5 {[%clk 0:00:09.4]}
40. Re1 {[%clk 0:00:45.3]} 40... Kf7 {[%clk 0:00:09.3]} 41. Qe4 {[%clk
0:00:42.3]} 41... Rf5 {[%clk 0:00:09.6]} 42. b4 {[%clk 0:00:31.6]} 42... Rf4
{[%clk 0:00:06.7]} 43. Qd5+ {[%clk 0:00:31]} 43... Kg7 {[%clk 0:00:07.9]} 44.
Re3 {[%clk 0:00:15.9]} 44... Rf1+ {[%clk 0:00:04.8]} 45. Kh2 {[%clk 0:00:17]}
45... Kh7 {[%clk 0:00:02.3]} 46. Rg3 {[%clk 0:00:17.3]} 46... e6 {[%clk
0:00:02.4]} 47. Qe4+ {[%clk 0:00:10.9]} 47... Rf5 {[%clk 0:00:02.7]} 48. Qg4
{[%clk 0:00:10.9]} 48... Qf7 {[%clk 0:00:03.1]} 49. c5 {[%clk 0:00:11.4]} 49...
Rh5 {[%clk 0:00:02.1]} 50. c6 {[%clk 0:00:12.6]} 50... Rf5 {[%clk 0:00:03.2]}
51. c7 {[%clk 0:00:13.4]} 51... Qxc7 {[%clk 0:00:04.2]} 52. Qg6+ {[%clk
0:00:14.7]} 52... Kh8 {[%clk 0:00:05.1]} 53. Qg8# {[%clk 0:00:16.6]} 1-0

[Event "GrandPrix_29.05"]
[Site "Chess.com"]
[Date "2020.05.29"]
[Round "5"]
[White "Petriashvili02"]
[Black "Vazgen352"]
[Result "1/2-1/2"]
[WhiteElo "2244"]
[BlackElo "2422"]
[TimeControl "600+2"]
[EndTime "11:32:59 PDT"]
[Termination "Game drawn by repetition"]

1. d4 {[%clk 0:10:00.5]} 1... d5 {[%clk 0:09:58.3]} 2. c4 {[%clk 0:10:01.1]}
2... c6 {[%clk 0:09:59.4]} 3. Nf3 {[%clk 0:10:02.3]} 3... Nf6 {[%clk 0:10:00.5]}
4. Qb3 {[%clk 0:09:57.8]} 4... dxc4 {[%clk 0:09:57.2]} 5. Qxc4 {[%clk
0:09:57.7]} 5... Bg4 {[%clk 0:09:58.8]} 6. Ne5 {[%clk 0:09:26.4]} 6... Be6
{[%clk 0:09:53.9]} 7. Qd3 {[%clk 0:09:20.6]} 7... g6 {[%clk 0:09:40.5]} 8. Nc3
{[%clk 0:09:19.9]} 8... Bg7 {[%clk 0:09:41.4]} 9. g3 {[%clk 0:09:13.6]} 9...
Nfd7 {[%clk 0:09:34.7]} 10. Nxd7 {[%clk 0:09:08.7]} 10... Qxd7 {[%clk 0:09:35]}
11. Be3 {[%clk 0:08:39.2]} 11... Na6 {[%clk 0:09:33.8]} 12. a3 {[%clk
0:08:36.7]} 12... Rd8 {[%clk 0:09:27.2]} 13. Rd1 {[%clk 0:08:22.2]} 13... Bh3
{[%clk 0:08:10.2]} 14. Qe4 {[%clk 0:07:22.1]} 14... Bf5 {[%clk 0:07:25.8]} 15.
Qh4 {[%clk 0:07:04.5]} 15... h6 {[%clk 0:07:03.7]} 16. d5 {[%clk 0:06:02]} 16...
cxd5 {[%clk 0:03:12.7]} 17. Nxd5 {[%clk 0:06:03.9]} 17... Qe6 {[%clk 0:03:13.8]}
18. Bg2 {[%clk 0:05:32.7]} 18... Bc2 {[%clk 0:02:59.5]} 19. Rd2 {[%clk
0:05:17.5]} 19... Bb3 {[%clk 0:02:59.2]} 20. Nf4 {[%clk 0:03:32.5]} 20... Rxd2
{[%clk 0:02:22.6]} 21. Bxd2 {[%clk 0:03:33.6]} 21... Qd7 {[%clk 0:02:23.2]} 22.
Nd3 {[%clk 0:03:28.8]} 22... Bd5 {[%clk 0:02:01.7]} 23. Bxd5 {[%clk 0:03:15]}
23... Qxd5 {[%clk 0:02:03.6]} 24. O-O {[%clk 0:03:16.3]} 24... g5 {[%clk
0:01:48.8]} 25. Qa4+ {[%clk 0:02:56.9]} 25... Qd7 {[%clk 0:01:49]} 26. Qb3
{[%clk 0:02:56.2]} 26... O-O {[%clk 0:01:47.5]} 27. Rc1 {[%clk 0:02:48.3]} 27...
Rc8 {[%clk 0:01:45.1]} 28. Rc4 {[%clk 0:02:47.5]} 28... Rxc4 {[%clk 0:01:43.7]}
29. Qxc4 {[%clk 0:02:49.4]} 29... e6 {[%clk 0:01:43.2]} 30. Be3 {[%clk
0:02:43.5]} 30... Bf6 {[%clk 0:01:09.5]} 31. a4 {[%clk 0:02:18.3]} 31... Nc7
{[%clk 0:00:48.4]} 32. Bxa7 {[%clk 0:02:13.6]} 32... Nd5 {[%clk 0:00:49.8]} 33.
Bd4 {[%clk 0:01:39.7]} 33... Bxd4 {[%clk 0:00:50.7]} 34. Qxd4 {[%clk 0:01:41.6]}
34... Qc6 {[%clk 0:00:52.3]} 35. e4 {[%clk 0:01:25.1]} 35... Nb6 {[%clk
0:00:53.3]} 36. b3 {[%clk 0:01:24.9]} 36... Nc8 {[%clk 0:00:52.4]} 37. Qc5
{[%clk 0:01:22.2]} 37... Qd7 {[%clk 0:00:50.5]} 38. Ne5 {[%clk 0:01:22.2]} 38...
Qd1+ {[%clk 0:00:50.4]} 39. Kg2 {[%clk 0:01:23.2]} 39... Nd6 {[%clk 0:00:52]}
40. Qb4 {[%clk 0:01:05.8]} 40... Kg7 {[%clk 0:00:46.1]} 41. h3 {[%clk
0:01:06.2]} 41... h5 {[%clk 0:00:33.9]} 42. a5 {[%clk 0:00:43.5]} 42... g4
{[%clk 0:00:33.7]} 43. hxg4 {[%clk 0:00:44.6]} 43... hxg4 {[%clk 0:00:35.6]} 44.
Nxg4 {[%clk 0:00:34.7]} 44... Qxg4 {[%clk 0:00:35.9]} 45. f3 {[%clk 0:00:25.3]}
45... Qh5 {[%clk 0:00:18.4]} 46. Qd4+ {[%clk 0:00:20.1]} 46... Kg8 {[%clk
0:00:17]} 47. Qxd6 {[%clk 0:00:21.2]} 47... Qxa5 {[%clk 0:00:18.6]} 48. Qd4
{[%clk 0:00:14.8]} 48... Qa2+ {[%clk 0:00:18.7]} 49. Kh3 {[%clk 0:00:15.7]}
49... Qxb3 {[%clk 0:00:20.3]} 50. Qd8+ {[%clk 0:00:16]} 50... Kh7 {[%clk
0:00:20.3]} 51. Qh4+ {[%clk 0:00:16.9]} 51... Kg6 {[%clk 0:00:20.7]} 52. Qg4+
{[%clk 0:00:18.3]} 52... Kf6 {[%clk 0:00:21.3]} 53. Qf4+ {[%clk 0:00:18.5]}
53... Ke7 {[%clk 0:00:20.4]} 54. Qc7+ {[%clk 0:00:19.8]} 54... Ke8 {[%clk
0:00:21.7]} 55. Qc8+ {[%clk 0:00:20.9]} 55... Ke7 {[%clk 0:00:23.5]} 56. Qc7+
{[%clk 0:00:22.4]} 56... Ke8 {[%clk 0:00:25.4]} 57. Qc8+ {[%clk 0:00:23.6]}
57... Ke7 {[%clk 0:00:27]} 58. Qc7+ {[%clk 0:00:25]} 1/2-1/2

[Event "GrandPrix_29.05"]
[Site "Chess.com"]
[Date "2020.05.29"]
[Round "5"]
[White "Flawless_Fighter"]
[Black "VojtechPlat"]
[Result "1/2-1/2"]
[WhiteElo "2259"]
[BlackElo "2368"]
[TimeControl "600+2"]
[EndTime "11:32:59 PDT"]
[Termination "Game drawn - insufficient material"]

1. e4 {[%clk 0:10:01.9]} 1... c5 {[%clk 0:09:59.1]} 2. Nf3 {[%clk 0:10:02.1]}
2... Nc6 {[%clk 0:09:59.5]} 3. Bb5 {[%clk 0:10:01.1]} 3... g6 {[%clk 0:10:00.1]}
4. Bxc6 {[%clk 0:10:00.8]} 4... dxc6 {[%clk 0:10:00.8]} 5. d3 {[%clk 0:10:01]}
5... Bg7 {[%clk 0:10:02]} 6. h3 {[%clk 0:10:02.5]} 6... Nf6 {[%clk 0:10:03.1]}
7. Nc3 {[%clk 0:10:01.8]} 7... Nd7 {[%clk 0:10:04]} 8. Be3 {[%clk 0:10:02.2]}
8... e5 {[%clk 0:10:05.2]} 9. Qd2 {[%clk 0:10:02.3]} 9... h6 {[%clk 0:10:06.2]}
10. O-O {[%clk 0:10:03.9]} 10... b6 {[%clk 0:10:04.8]} 11. Nh2 {[%clk
0:10:05.4]} 11... Nf8 {[%clk 0:10:05.4]} 12. f4 {[%clk 0:10:06.5]} 12... exf4
{[%clk 0:10:06.2]} 13. Bxf4 {[%clk 0:10:08.4]} 13... Ne6 {[%clk 0:10:05.7]} 14.
Be3 {[%clk 0:10:10]} 14... Nd4 {[%clk 0:09:58]} 15. Nd1 {[%clk 0:10:10.8]} 15...
Be6 {[%clk 0:09:51.7]} 16. c3 {[%clk 0:10:04.6]} 16... Nb5 {[%clk 0:09:52.5]}
17. a4 {[%clk 0:10:05.8]} 17... Nd6 {[%clk 0:09:49.4]} 18. a5 {[%clk 0:10:01.1]}
18... bxa5 {[%clk 0:09:38]} 19. Nf2 {[%clk 0:09:42.7]} 19... Rb8 {[%clk
0:08:53.6]} 20. Nf3 {[%clk 0:09:02.8]} 20... Qb6 {[%clk 0:07:57.6]} 21. Rfb1
{[%clk 0:08:14.3]} 21... Rd8 {[%clk 0:07:41]} 22. Qc1 {[%clk 0:07:40.6]} 22...
Qb5 {[%clk 0:06:55.6]} 23. Ra3 {[%clk 0:06:58.4]} 23... f5 {[%clk 0:06:24.2]}
24. e5 {[%clk 0:06:47.7]} 24... Nf7 {[%clk 0:06:20.6]} 25. Rba1 {[%clk
0:06:36.6]} 25... Rb8 {[%clk 0:05:41.5]} 26. Rxa5 {[%clk 0:06:28.1]} 26... Qxb2
{[%clk 0:05:42]} 27. Qxb2 {[%clk 0:06:22.3]} 27... Rxb2 {[%clk 0:05:42.3]} 28.
Rxc5 {[%clk 0:06:23.8]} 28... Bd5 {[%clk 0:05:09]} 29. Rxa7 {[%clk 0:05:50]}
29... O-O {[%clk 0:04:58.1]} 30. c4 {[%clk 0:05:20]} 30... Bxf3 {[%clk
0:04:09.5]} 31. gxf3 {[%clk 0:05:20.8]} 31... Re2 {[%clk 0:03:41.5]} 32. e6
{[%clk 0:04:01]} 32... Rxe3 {[%clk 0:03:34.3]} 33. exf7+ {[%clk 0:04:00.1]}
33... Rxf7 {[%clk 0:02:32.2]} 34. Rxf7 {[%clk 0:03:59.7]} 34... Kxf7 {[%clk
0:02:33]} 35. Rxc6 {[%clk 0:03:57.1]} 35... Rxf3 {[%clk 0:02:30.8]} 36. Kg2
{[%clk 0:03:54.4]} 36... Re3 {[%clk 0:02:30.7]} 37. h4 {[%clk 0:03:10.1]} 37...
Bd4 {[%clk 0:02:26.8]} 38. Rd6 {[%clk 0:03:00]} 38... Be5 {[%clk 0:02:27.3]} 39.
Rd5 {[%clk 0:02:42.2]} 39... Ke6 {[%clk 0:02:23.7]} 40. d4 {[%clk 0:02:30.8]}
40... Bf4 {[%clk 0:02:24.1]} 41. Ra5 {[%clk 0:02:21]} 41... g5 {[%clk
0:01:40.6]} 42. Ra6+ {[%clk 0:02:13.7]} 42... Kf7 {[%clk 0:01:41.6]} 43. hxg5
{[%clk 0:00:49.3]} 43... hxg5 {[%clk 0:01:42.2]} 44. c5 {[%clk 0:00:50.6]} 44...
g4 {[%clk 0:01:31.7]} 45. Ra2 {[%clk 0:00:31]} 45... Rg3+ {[%clk 0:01:23.6]} 46.
Kf1 {[%clk 0:00:31.5]} 46... Rc3 {[%clk 0:01:24.5]} 47. Nxg4 {[%clk 0:00:11.4]}
47... fxg4 {[%clk 0:00:52.3]} 48. Rf2 {[%clk 0:00:12.7]} 48... Rf3 {[%clk
0:00:52.6]} 49. Rxf3 {[%clk 0:00:13.6]} 49... gxf3 {[%clk 0:00:53.5]} 50. Kf2
{[%clk 0:00:15.2]} 50... Ke6 {[%clk 0:00:52.8]} 51. Kxf3 {[%clk 0:00:16.6]}
51... Bd6 {[%clk 0:00:49.6]} 52. Ke4 {[%clk 0:00:16.7]} 52... Bc7 {[%clk
0:00:45.5]} 53. d5+ {[%clk 0:00:17.2]} 53... Kd7 {[%clk 0:00:46.3]} 54. Kd4
{[%clk 0:00:15.2]} 54... Bh2 {[%clk 0:00:47.2]} 55. Kc4 {[%clk 0:00:16.1]} 55...
Kc7 {[%clk 0:00:47.1]} 56. Kb5 {[%clk 0:00:17.1]} 56... Bg3 {[%clk 0:00:47.8]}
57. Kc4 {[%clk 0:00:17.6]} 57... Bh2 {[%clk 0:00:48.8]} 58. Kd3 {[%clk
0:00:19.2]} 58... Bg3 {[%clk 0:00:48.6]} 59. Ke4 {[%clk 0:00:20.8]} 59... Kd7
{[%clk 0:00:49.3]} 60. Kf3 {[%clk 0:00:21.9]} 60... Bh2 {[%clk 0:00:49.9]} 61.
Ke4 {[%clk 0:00:23]} 61... Bg1 {[%clk 0:00:48.5]} 62. c6+ {[%clk 0:00:21.7]}
62... Kd6 {[%clk 0:00:49.7]} 63. c7 {[%clk 0:00:22.7]} 63... Kxc7 {[%clk
0:00:50]} 64. d6+ {[%clk 0:00:24.6]} 64... Kxd6 {[%clk 0:00:51.2]} 1/2-1/2

[Event "GrandPrix_29.05"]
[Site "Chess.com"]
[Date "2020.05.29"]
[Round "5"]
[White "ninullia"]
[Black "Igrok3069"]
[Result "0-1"]
[WhiteElo "2345"]
[BlackElo "2596"]
[TimeControl "600+2"]
[EndTime "11:33:05 PDT"]
[Termination "Igrok3069 won on time"]

1. d4 {[%clk 0:10:00.5]} 1... d5 {[%clk 0:10:00.5]} 2. c4 {[%clk 0:09:55.7]}
2... c6 {[%clk 0:10:01.2]} 3. cxd5 {[%clk 0:09:55.4]} 3... cxd5 {[%clk
0:10:01.7]} 4. Bf4 {[%clk 0:09:53.7]} 4... Nf6 {[%clk 0:10:01.1]} 5. Nc3 {[%clk
0:09:53]} 5... Nc6 {[%clk 0:10:01.4]} 6. e3 {[%clk 0:09:54.2]} 6... Bg4 {[%clk
0:10:02.1]} 7. Qb3 {[%clk 0:09:54.2]} 7... Na5 {[%clk 0:10:02.2]} 8. Qa4+ {[%clk
0:09:55.3]} 8... Bd7 {[%clk 0:10:02.1]} 9. Qc2 {[%clk 0:09:55.7]} 9... e6 {[%clk
0:09:59.7]} 10. Bd3 {[%clk 0:09:56.2]} 10... Nh5 {[%clk 0:09:53.3]} 11. Be5
{[%clk 0:09:53.8]} 11... Nc6 {[%clk 0:09:54]} 12. Qe2 {[%clk 0:09:37.5]} 12...
Nxe5 {[%clk 0:09:54.3]} 13. dxe5 {[%clk 0:09:37.5]} 13... g6 {[%clk 0:09:55.4]}
14. Nf3 {[%clk 0:09:34.4]} 14... Bb4 {[%clk 0:09:55.3]} 15. O-O {[%clk
0:09:24.3]} 15... O-O {[%clk 0:09:53.4]} 16. Rac1 {[%clk 0:09:18.9]} 16... Rc8
{[%clk 0:09:35.9]} 17. Nd4 {[%clk 0:09:11.5]} 17... f6 {[%clk 0:09:09.1]} 18.
exf6 {[%clk 0:08:21.8]} 18... Nxf6 {[%clk 0:09:08.2]} 19. a3 {[%clk 0:08:18.1]}
19... Bxc3 {[%clk 0:09:02.6]} 20. Rxc3 {[%clk 0:08:13.7]} 20... Rxc3 {[%clk
0:09:02]} 21. bxc3 {[%clk 0:08:15.6]} 21... e5 {[%clk 0:09:01]} 22. Nb3 {[%clk
0:08:10.6]} 22... e4 {[%clk 0:08:02.8]} 23. Bb5 {[%clk 0:08:00.6]} 23... Bg4
{[%clk 0:06:23.2]} 24. Qd2 {[%clk 0:07:59.3]} 24... a6 {[%clk 0:06:20.4]} 25.
Be2 {[%clk 0:07:58.1]} 25... Bxe2 {[%clk 0:06:20.5]} 26. Qxe2 {[%clk 0:07:57.7]}
26... Qc7 {[%clk 0:06:21.5]} 27. Rc1 {[%clk 0:07:51.4]} 27... Rc8 {[%clk
0:06:17.5]} 28. h3 {[%clk 0:07:50.5]} 28... Qc4 {[%clk 0:05:58.7]} 29. Nd4
{[%clk 0:07:25.2]} 29... Qxe2 {[%clk 0:05:52.5]} 30. Nxe2 {[%clk 0:07:25.5]}
30... Rc4 {[%clk 0:05:39]} 31. Rb1 {[%clk 0:06:26]} 31... b5 {[%clk 0:05:38.5]}
32. Rb4 {[%clk 0:06:26.7]} 32... Kf7 {[%clk 0:05:31.4]} 33. Kf1 {[%clk
0:06:26.4]} 33... Ke6 {[%clk 0:05:18.9]} 34. Ke1 {[%clk 0:06:22.8]} 34... Nd7
{[%clk 0:05:13.3]} 35. Kd2 {[%clk 0:06:08.2]} 35... Ne5 {[%clk 0:05:02.3]} 36.
Nd4+ {[%clk 0:05:01.2]} 36... Kd6 {[%clk 0:05:00.9]} 37. f4 {[%clk 0:04:54.4]}
37... exf3 {[%clk 0:03:05.3]} 38. gxf3 {[%clk 0:04:36.3]} 38... Rc7 {[%clk
0:03:02]} 39. a4 {[%clk 0:04:27.8]} 39... Nc4+ {[%clk 0:03:02.4]} 40. Ke2 {[%clk
0:04:14.7]} 40... Re7 {[%clk 0:02:33.7]} 41. Nc2 {[%clk 0:02:03.7]} 41... bxa4
{[%clk 0:01:58.7]} 42. Rxa4 {[%clk 0:02:03.7]} 42... a5 {[%clk 0:01:59.5]} 43.
e4 {[%clk 0:01:41.8]} 43... Kc5 {[%clk 0:01:43.6]} 44. Na3 {[%clk 0:00:54]}
44... Ra7 {[%clk 0:01:39.3]} 45. Nxc4 {[%clk 0:00:36.5]} 45... dxc4 {[%clk
0:01:39.7]} 46. Ke3 {[%clk 0:00:38]} 46... Kb5 {[%clk 0:01:34.5]} 47. Ra3 {[%clk
0:00:36.9]} 47... Rd7 {[%clk 0:01:15.2]} 48. e5 {[%clk 0:00:38.1]} 48... Rd1
{[%clk 0:01:13.7]} 49. Kf4 {[%clk 0:00:32.7]} 49... Re1 {[%clk 0:01:11.2]} 50.
h4 {[%clk 0:00:27.4]} 50... a4 {[%clk 0:01:04.9]} 51. Ra2 {[%clk 0:00:28.4]}
51... Ka5 {[%clk 0:00:50.8]} 52. Ra3 {[%clk 0:00:24.7]} 52... Re2 {[%clk
0:00:46.2]} 53. Ra1 {[%clk 0:00:24.1]} 53... Kb5 {[%clk 0:00:47.1]} 54. Rb1+
{[%clk 0:00:19.6]} 54... Kc5 {[%clk 0:00:43.7]} 55. Rb8 {[%clk 0:00:16]} 55...
a3 {[%clk 0:00:43]} 56. Ra8 {[%clk 0:00:05.4]} 56... a2 {[%clk 0:00:44.1]} 57.
Ra5+ {[%clk 0:00:06]} 57... Kc6 {[%clk 0:00:41]} 0-1

[Event "GrandPrix_29.05"]
[Site "Chess.com"]
[Date "2020.05.29"]
[Round "5"]
[White "moro182"]
[Black "gliglu"]
[Result "1-0"]
[WhiteElo "2578"]
[BlackElo "2347"]
[TimeControl "600+2"]
[EndTime "11:33:06 PDT"]
[Termination "moro182 won on time"]

1. d4 {[%clk 0:10:01.9]} 1... Nf6 {[%clk 0:09:59.9]} 2. c4 {[%clk 0:10:03]} 2...
e6 {[%clk 0:10:00.9]} 3. Nc3 {[%clk 0:10:03.8]} 3... Bb4 {[%clk 0:10:01.2]} 4.
e3 {[%clk 0:10:05.4]} 4... O-O {[%clk 0:10:01.4]} 5. Bd3 {[%clk 0:10:06.4]} 5...
d5 {[%clk 0:10:00.2]} 6. Nf3 {[%clk 0:10:07.7]} 6... b6 {[%clk 0:10:01]} 7. O-O
{[%clk 0:10:08.3]} 7... Ba6 {[%clk 0:10:00.7]} 8. cxd5 {[%clk 0:10:03.8]} 8...
exd5 {[%clk 0:10:01.5]} 9. Bxa6 {[%clk 0:09:52.9]} 9... Nxa6 {[%clk 0:10:01.5]}
10. Qa4 {[%clk 0:09:46.6]} 10... Qc8 {[%clk 0:10:01.6]} 11. Bd2 {[%clk
0:09:44.2]} 11... Re8 {[%clk 0:09:59.9]} 12. Rac1 {[%clk 0:09:44.1]} 12... Bf8
{[%clk 0:09:51.4]} 13. Ne5 {[%clk 0:09:23.4]} 13... c5 {[%clk 0:09:13.7]} 14. f4
{[%clk 0:08:24]} 14... Nc7 {[%clk 0:08:49.4]} 15. Be1 {[%clk 0:08:01.6]} 15...
a6 {[%clk 0:08:30.1]} 16. Bh4 {[%clk 0:07:51.1]} 16... b5 {[%clk 0:07:52.2]} 17.
Qd1 {[%clk 0:07:08]} 17... c4 {[%clk 0:07:29.1]} 18. Qf3 {[%clk 0:06:09.1]}
18... b4 {[%clk 0:07:02.4]} 19. Ne2 {[%clk 0:05:30.9]} 19... Ne4 {[%clk
0:06:16.6]} 20. Be1 {[%clk 0:04:56.2]} 20... f6 {[%clk 0:05:48.7]} 21. Ng4
{[%clk 0:04:52]} 21... Rb8 {[%clk 0:05:03]} 22. f5 {[%clk 0:04:12.1]} 22... b3
{[%clk 0:04:40.9]} 23. a4 {[%clk 0:03:15.3]} 23... Qd7 {[%clk 0:04:35.4]} 24.
Nc3 {[%clk 0:03:00.6]} 24... Kh8 {[%clk 0:03:56.6]} 25. Nxe4 {[%clk 0:02:52.3]}
25... Rxe4 {[%clk 0:03:10.6]} 26. Rxc4 {[%clk 0:02:36.4]} 26... dxc4 {[%clk
0:03:06.2]} 27. Qxe4 {[%clk 0:02:35.5]} 27... Qxa4 {[%clk 0:03:06.5]} 28. Bg3
{[%clk 0:02:14.4]} 28... Qd7 {[%clk 0:02:27.9]} 29. Rc1 {[%clk 0:01:48.7]} 29...
Rd8 {[%clk 0:01:54.8]} 30. Qb7 {[%clk 0:00:58.8]} 30... Nd5 {[%clk 0:01:47.1]}
31. Qxd7 {[%clk 0:00:56.9]} 31... Rxd7 {[%clk 0:01:48.1]} 32. Rxc4 {[%clk
0:00:58.7]} 32... h5 {[%clk 0:01:49.1]} 33. Rc8 {[%clk 0:00:35.8]} 33... Kg8
{[%clk 0:01:44.7]} 34. Nf2 {[%clk 0:00:08.3]} 34... Nxe3 {[%clk 0:01:28.1]} 35.
Ne4 {[%clk 0:00:08.9]} 35... Nxf5 {[%clk 0:01:19.9]} 36. Nc5 {[%clk 0:00:07.5]}
36... Re7 {[%clk 0:01:14.2]} 37. d5 {[%clk 0:00:05]} 37... Kf7 {[%clk
0:00:18.6]} 38. d6 {[%clk 0:00:04.3]} 38... Re2 {[%clk 0:00:13.9]} 39. d7 {[%clk
0:00:05]} 39... Bxc5+ {[%clk 0:00:08.5]} 40. Rxc5 {[%clk 0:00:06.9]} 40... Rd2
{[%clk 0:00:09.5]} 41. Rxf5 {[%clk 0:00:07.8]} 41... Rxd7 {[%clk 0:00:10.3]} 42.
Be1 {[%clk 0:00:05.6]} 42... Rd1 {[%clk 0:00:09.6]} 43. Kf2 {[%clk 0:00:05.4]}
43... Rc1 {[%clk 0:00:10.7]} 44. Ra5 {[%clk 0:00:04.1]} 44... Rc2+ {[%clk
0:00:10.9]} 45. Kf1 {[%clk 0:00:05.7]} 45... Rxb2 {[%clk 0:00:11.9]} 46. Rxa6
{[%clk 0:00:07.3]} 46... Rb1 {[%clk 0:00:11.5]} 47. Rb6 {[%clk 0:00:08.5]} 47...
g5 {[%clk 0:00:11.4]} 48. Ke2 {[%clk 0:00:06.7]} 48... f5 {[%clk 0:00:08]} 49.
Bc3 {[%clk 0:00:06.4]} 49... f4 {[%clk 0:00:08.7]} 50. Kf2 {[%clk 0:00:07.2]}
50... Ke8 {[%clk 0:00:02.5]} 51. Rb5 {[%clk 0:00:07.7]} 1-0